Cogmind - Beta 13 --- EXPLORER MODE // 2024.04.29 @ 00:39:47 Player: Dries007 Result: Destroyed by G-50 Soldier with Heavy Laser Performance ------------- Evolutions (4) 2000 Regions Visited (12) 2400 Robots Destroyed (285) 1425 Value Destroyed (11099) 11099 Prototype IDs (18) 360 Alien Tech Used (0) 0 Bonus (-80) -80 TOTAL SCORE: 17204 Bonus ------- High Alert Combat Kills 146 Follower Combat Kills 37 Friendly Fire -263 Cogmind --------- Core Integrity 0/850 Matter 198/300 Energy 212/715 System Corruption 1% Temperature Danger (431) Movement Treading (160) Location -6/Hub_04(d) Parts ------- > --- POWER (1) -------- Neutrino Core > --- PROPULSION (4) --- Improved Treads Improved Medium Treads Improved Medium Treads Improved Medium Treads > --- UTILITY (8) ------ Medium Storage Unit Improved Energy Well Enhanced Optical Array Improved Sensor Array Improved Signal Interpreter Targeting Computer Improved Medium Armor Plating Improved Hardlight Generator > --- WEAPON (3) ------- Plasma Cannon KE Penetrator KE Penetrator > --- INVENTORY (10) --- Light Angular Momentum Engine Neutrino Core Advanced Heat Sink Matter Compressor (250) Phase Shifter Improved Medium Armor Plating System Restoration Module Improved System Restoration Module Recalibrator Remote Datajack Peak State ------------ > --- POWER ------------ Light Fission Core > --- PROPULSION ------- Gravmag Array Gravmag Array > --- UTILITY ---------- Medium Storage Unit Improved Energy Well Enhanced Optical Array Advanced Sensor Array Advanced Terrain Scanner Advanced Terrain Scan Processor Armor Integrity Analyzer Improved System Shield > --- WEAPON ----------- Coil Gun KE Penetrator Long-range Missile Launcher > --- INVENTORY -------- Improved Gravmag System Matter Compressor System Restoration Module Recalibrator Arc Projector Gatling Laser Coil Gun Magnetic Acceleration Cannon Remote Datajack [Rating: 81] Favorites ----------- Power Improved Deuterium Engine Engine Improved Deuterium Engine Power Core Light Nuclear Core Propulsion Light Treads Treads Light Treads Leg Aluminum Leg Wheel Armored Huge Wheel Hover Unit Gravmag Array Flight Unit Cooled VTOL Module Utility Visual Processing Unit Device Sensor Array Storage Huge Storage Unit Processor Visual Processing Unit Hackware Hacking Suite Protection Improved Medium Armor Plating Weapon Improved Assault Rifle Energy Gun Lightning Gun Energy Cannon Heavy Ion Cannon Ballistic Gun Improved Assault Rifle Ballistic Cannon Advanced Assault Cannon Launcher Long-range Missile Launcher Special Weapon Remote Datajack Impact Weapon Power Maul Build | -11 -10 -9 -9 -8 -7 -6 -6 -6 -6 -6 -6 -6 ------- Run | Yrd Mat Mat Min Mat Fac Fac Was Fac Ext Cet Arc Hub Slots Evolved 9 | . 1 2 . 2 2 2 . . . . . . Power . | . . . . . . . . . . . . . Propulsion 2 | . . . . . 1 1 . . . . . . Utility 6 | . 1 2 . 2 . 1 . . . . . . Weapon 1 | . . . . . 1 . . . . . . . Parts Attached 262 | 4 7 29 6 38 76 25 8 27 11 9 9 13 Power 25 | 1 1 3 1 7 4 3 . 1 1 1 1 1 Engine 13 | 1 . 3 1 1 4 2 . 1 . . . . Core 12 | . 1 . . 6 . 1 . . 1 1 1 1 Reactor . | . . . . . . . . . . . . . Propulsion 54 | 1 1 3 1 11 15 2 1 9 . 1 3 6 Treads 24 | . . 2 1 7 4 . . 1 . . 3 6 Leg 10 | 1 1 1 . 4 2 . . 1 . . . . Wheel 12 | . . . . . 8 2 1 1 . . . . Hover 7 | . . . . . . . . 6 . 1 . . Flight 1 | . . . . . 1 . . . . . . . Utility 82 | 2 1 8 4 9 24 9 . 13 5 2 2 3 Device 50 | . 1 2 3 5 19 7 . 9 2 . . 2 Storage 9 | 1 . 2 . 1 1 . . 1 2 1 . . Processor 15 | 1 . 3 1 1 3 2 . 1 1 1 . 1 Hackware 4 | . . . . 1 1 . . 2 . . . . Protection 4 | . . 1 . 1 . . . . . . 2 . Artifact . | . . . . . . . . . . . . . Weapon 101 | . 4 15 . 11 33 11 7 4 5 5 3 3 Energy Gun 21 | . 1 4 . 3 5 3 1 . . 2 1 1 Energy Cannon 14 | . . . . . 7 2 3 1 . . . 1 Ballistic Gun 38 | . 3 9 . 7 9 . . 1 4 2 2 1 Ballistic Cannon 4 | . . . . . 1 . . 2 . 1 . . Launcher 16 | . . 1 . 1 9 3 1 . 1 . . . Special Weapon 2 | . . 1 . . . . 1 . . . . . Impact Weapon 6 | . . . . . 2 3 1 . . . . . Slashing Weapon . | . . . . . . . . . . . . . Piercing Weapon . | . . . . . . . . . . . . . Special Melee Weapon . | . . . . . . . . . . . . . Unidentified Prototypes 8 | . . 2 1 2 1 . . . 1 1 . . Parts Lost 52 | . . 4 . 1 8 12 2 6 1 8 6 4 Power 7 | . . 1 . . 1 2 . . 1 1 1 . Propulsion 9 | . . 2 . . . . . 2 . 1 2 2 Utility 12 | . . . . 1 1 4 1 2 . 2 . 1 Weapon 24 | . . 1 . . 6 6 1 2 . 4 3 1 Highest Loss Streak 7 | . . 1 . 1 2 5 2 3 1 7 4 2 To Critical Strikes 5 | . . . . . . . . . . 5 . . Average Slot Usage (%) 94 | . 99 99 100 99 93 85 76 85 86 81 87 97 Engine 5 | . 9 6 10 1 6 5 . 2 5 . . . Core 2 | . 2 3 . 6 . . 6 3 . 1 4 6 Treads 9 | . . 13 20 15 5 . . 1 . . 14 22 Leg 2 | . 24 6 . . . . . . . . . . Wheel 4 | . . . . . 9 11 11 5 . . . . Hover 1 | . . . . . . . . 4 12 11 1 . Device 9 | . 12 10 10 15 8 15 6 6 11 4 . 3 Storage 8 | . 12 10 10 8 7 6 2 4 8 17 13 12 Processor 26 | . 12 29 29 25 26 25 34 29 22 19 25 24 Hackware 4 | . . . . 7 7 1 . 6 6 6 6 2 Energy Gun 3 | . 10 1 . 4 4 6 7 . . 5 5 1 Energy Cannon 2 | . . . . . 6 . 5 3 . . . 4 Ballistic Gun 11 | . 13 18 20 11 8 2 . 2 11 6 10 11 Ballistic Cannon 1 | . . . . . . 5 . 10 1 5 . . Naked Turns . | . . . . . . . . . . . . . Heaviest Build 115 | 13 21 54 55 103 112 115 104 39 43 44 47 61 Greatest Support 113 | 10 20 40 48 51 70 56 56 56 40 40 69 113 Greatest Overweight (x) 17 | 4 1 17 1 3 3 3 3 3 1 12 3 . Average Overweight (x) 1 | 2 . 1 1 1 2 1 . . . 1 . . Largest Inventory Capacity 25 | 10 10 20 20 25 25 25 25 10 10 10 10 10 Average Capacity 20 | 9 10 19 20 23 25 25 14 9 10 10 10 10 Most Carried 25 | 10 10 20 20 25 25 25 15 10 10 9 10 10 Average Carried 18 | 6 9 13 19 22 24 21 8 7 9 4 6 9 Final Capacity 25 | 10 10 20 20 25 25 25 5 10 10 10 10 10 Final Carried 25 | 10 10 20 20 25 25 15 4 10 9 5 10 10 Class Distribution -------------------- 63% | Hacker-Skirmisher 11% | Scavenger-Skirmisher 9% | Hacker-Gunner 5% | Hacker-Mutant 3% | Hacker-Scout 3% | Scavenger-Gunner Dominant Class ---------------- Hacker-Mutant | -10/Materials Scavenger-Skirmisher | -9/Materials Hacker-Skirmisher | -9/Mines Hacker-Skirmisher | -8/Materials Hacker-Skirmisher | -7/Factory Hacker-Skirmisher | -6/Factory Hacker-Skirmisher | -6/Waste Hacker-Skirmisher | -6/Factory Hacker-Scout | -6/Extension Hacker-Skirmisher | -6/Cetus Scavenger-Gunner | -6/Archives Scavenger-Gunner | -6/Hub_04(d) Resources | -11 -10 -9 -9 -8 -7 -6 -6 -6 -6 -6 -6 -6 ----------- Run | Yrd Mat Mat Min Mat Fac Fac Was Fac Ext Cet Arc Hub Matter Collected 7623 | 201 326 900 130 1025 1996 433 268 568 890 148 318 420 Remotely . | . . . . . . . . . . . . . Salvage Created 11051 | . 557 1443 90 1844 2710 735 . 460 1153 150 329 1580 Parts 563 | . 23 113 2 99 150 22 . 20 47 6 13 68 Haulers Intercepted 1 | . . 1 . . . . . . . . . . Recyclers Shooed 7 | . 2 . . 1 3 1 . . . . . . Parts Field Recycled . | . . . . . . . . . . . . . Retrieved Matter . | . . . . . . . . . . . . . Parts Self-Destructed . | . . . . . . . . . . . . . Prevented . | . . . . . . . . . . . . . Kills | -11 -10 -9 -9 -8 -7 -6 -6 -6 -6 -6 -6 -6 ------- Run | Yrd Mat Mat Min Mat Fac Fac Was Fac Ext Cet Arc Hub Combat Hostiles Destroyed 211 | . 8 35 2 33 59 22 . 8 20 5 4 15 Melee 1 | . . . . . . 1 . . . . . . Guns 129 | . 8 34 2 33 26 7 . 1 5 1 3 9 Cannons 37 | . . . . . 15 7 . 7 . 4 . 4 AOE 40 | . . 1 . . 18 6 . . 15 . . . Classes Destroyed 16 | . 3 5 . 1 5 1 . . 1 . . . Worker 13 | . . 2 . 1 6 . . . 1 . . 3 Builder 13 | . . 1 . . 2 4 . 1 2 . . 3 Tunneler 5 | . . . . . 2 . . 2 1 . . . Hauler 1 | . . 1 . . . . . . . . . . Recycler 12 | . 2 . . 1 2 . . 1 3 . . 3 Mechanic 2 | . . . . . 1 1 . . . . . . Operator 4 | . . . . . 2 1 . . . . 1 . Watcher 30 | . 3 5 . 5 6 . . 3 2 1 . 5 Swarmer 28 | . . 12 . 3 4 3 . 3 3 . . . Grunt 94 | . 8 13 2 21 28 11 . . 5 . . 6 Brawler 2 | . . . . . 1 1 . . . . . . Duelist 8 | . . . . . . 3 . . 5 . . . Sentry 41 | . . 10 . 7 8 1 . 3 4 . 4 4 Hunter 16 | . . . . 2 6 2 . 1 2 1 . 2 Programmer 17 | . . . . . 12 1 . 1 . . . 3 Behemoth 1 | . . . . . . . . . 1 . . . Cetus Guard 4 | . . . . . . . . . . 4 . . Best Kill Streak 10 | . 4 5 1 4 8 10 . 3 9 5 3 7 Combat Bots Only 6 | . 2 4 1 3 5 5 . 3 6 4 2 3 Max Kills in Single Turn 4 | . 2 2 1 2 4 3 . 1 4 1 1 2 Gunslinging 1 | . 1 1 . . . . . . . . . . Exploded 3 | . . 1 . . 3 2 . . 2 . . . Melee 1 | . . . . . . 1 . . . . . . Uniques/NPCs Destroyed . | . . . . . . . . . . . . . Combat | -11 -10 -9 -9 -8 -7 -6 -6 -6 -6 -6 -6 -6 -------- Run | Yrd Mat Mat Min Mat Fac Fac Was Fac Ext Cet Arc Hub Hostile Shots Fired 1490 | . 45 127 14 134 465 216 2 88 99 68 78 154 Missed 495 | . 17 43 3 37 175 59 . 34 38 12 29 48 Damage Taken 9221 | . 252 646 115 873 2366 1333 58 489 771 795 729 794 Core 1371 | . 37 100 16 138 228 141 34 77 221 157 140 82 Absorbed by Shields 474 | . . . . 100 172 88 . . . . . 114 Ignored by Resistances 5939 | . 155 413 70 597 1587 852 33 309 462 473 430 558 Regen/Repaired (Parts) 432 | . . 103 . 19 310 . . . . . . . Core Remaining (%) 79 | 100 85 . 71 74 67 . . . . . . . Volleys Fired 566 | . 36 85 12 93 118 49 2 34 34 22 25 56 Largest 3 | . 2 2 2 2 3 3 3 3 3 3 3 3 Hottest 236 | . 85 85 46 94 173 194 236 204 129 188 143 193 Shots Fired 1362 | . 71 166 24 186 343 116 6 92 90 58 46 164 Gun 994 | . 71 165 24 186 205 62 3 16 65 37 45 115 Cannon 286 | . . . . . 93 45 2 76 2 18 1 49 Launcher 82 | . . 1 . . 45 9 1 . 23 3 . . Special . | . . . . . . . . . . . . . Kinetic 885 | . 45 151 24 148 131 71 . 74 67 38 33 103 Thermal 311 | . 26 14 . 38 108 32 3 14 . 4 11 61 Explosive 81 | . . 1 . . 45 9 . . 23 3 . . Electromagnetic 85 | . . . . . 59 4 3 4 . 13 2 . Robot Hit Streak 87 | . 18 20 28 59 87 24 16 20 28 44 15 41 Robot Miss Streak 4 | . 3 3 2 3 4 3 . 3 4 1 1 2 Penetration Max 2 | . . . . . . . . . 2 1 1 1 Secondary Targets 12 | . 1 7 . 3 1 . . . . . . . Max Gunslinging Chain 1 | . 1 1 . 1 1 . . . . . . . Shots Hit Robots 1057 | . 57 128 21 164 244 96 6 57 73 38 42 131 Core Hits 620 | . 25 60 5 82 192 75 4 21 54 29 19 54 Critical Kills 5 | . . . . . . 1 . . . . . 4 Critical Parts Destroyed 15 | . . 1 . 1 1 1 . . 2 1 1 7 Critical Strikes 35 | . 1 2 . 1 4 8 . 4 2 1 1 11 Burn 4 | . 1 1 . . 1 1 . . . . . . Meltdown 2 | . . . . . . . . . . . . 2 Destroy 17 | . . 1 . 1 1 1 . . 2 1 1 9 Blast 9 | . . . . . . 5 . 4 . . . . Corrupt 2 | . . . . . 2 . . . . . . . Smash 1 | . . . . . . 1 . . . . . . Melee Attacks 8 | . . . . . 4 4 . . . . . . Impact 8 | . . . . . 4 4 . . . . . . Slashing . | . . . . . . . . . . . . . Piercing . | . . . . . . . . . . . . . Sneak Attacks . | . . . . . . . . . . . . . Combat Hostiles . | . . . . . . . . . . . . . Follow-up Attacks . | . . . . . . . . . . . . . Damage Inflicted 29182 | . 787 1948 312 2682 8550 4389 74 1322 3562 1269 1071 3216 Guns 15080 | . 787 1926 312 2682 2873 1204 44 168 1248 543 1071 2222 Cannons 5340 | . . . . . 1966 895 28 1154 29 275 . 993 Explosions 8710 | . . 16 . . 3698 2258 2 . 2285 451 . . Melee 32 | . . . . . . 32 . . . . . . Ramming 20 | . . 6 . . 13 . . . . . . 1 Kinetic 13304 | . 460 1728 312 1957 1905 1353 . 999 1277 641 704 1968 Thermal 7045 | . 327 198 . 725 2483 1038 69 283 230 89 356 1247 Explosive 7843 | . . 16 . . 3440 1881 . . 2055 451 . . Electromagnetic 938 | . . . . . 709 85 5 40 . 88 11 . Impact 32 | . . . . . . 32 . . . . . . Slashing . | . . . . . . . . . . . . . Piercing . | . . . . . . . . . . . . . Highest Corruption 3 | . . 2 2 . 3 1 1 1 . . . 1 Average Corruption 1 | . . 1 1 . 1 1 1 1 . . . 1 Corruption Purged 10 | . . . 2 . 6 . . 2 . . . . Corruption Blocked . | . . . . . . . . . . . . . Effects 60 | . . 10 13 . 35 1 . 1 . . . . Message Errors 16 | . . 3 5 . 8 . . . . . . . Matter Fused 14 | . . 2 1 . 10 . . 1 . . . . Heat Flow Errors 8 | . . 3 . . 5 . . . . . . . Energy Discharges 8 | . . 2 2 . 4 . . . . . . . Parts Rejected 1 | . . . . . . 1 . . . . . . Data Loss (minor) 7 | . . . 3 . 4 . . . . . . . Data Loss (major) 1 | . . . . . 1 . . . . . . . Misfires 3 | . . . 1 . 2 . . . . . . . Alerts 1 | . . . . . 1 . . . . . . . Weapon Failures 1 | . . . 1 . . . . . . . . . Overload Shots . | . . . . . . . . . . . . . Overflow Damage 531 | . . . . . 197 123 . 28 105 46 . 32 Projectiles 120 | . . . . . 34 26 . 28 . . . 32 Explosions 411 | . . . . . 163 97 . . 105 46 . . Melee . | . . . . . . . . . . . . . Knockbacks 9 | . . . . . . 4 . 5 . . . . Impact . | . . . . . . . . . . . . . Kinetic 9 | . . . . . . 4 . 5 . . . . Secondary . | . . . . . . . . . . . . . Self-Inflicted Damage 309 | . . . . . 215 25 . . 69 . . . Shots 18 | . . . . . 14 1 . . 3 . . . Rammed 3 | . . . . . 1 . . . . . . 2 Targets Rammed 5 | . . 2 . . 1 . . . . . . 2 Kicked 1 | . . 1 . . . . . . . . . . Crushed 1 | . . 1 . . . . . . . . . . Highest Temperature 547 | . 488 265 1 403 547 225 144 318 88 268 151 459 Average Temperature 95 | . 165 71 1 74 100 80 68 87 30 61 65 130 Received Heat Transfer 3349 | . 255 330 90 539 959 400 . 78 189 . 279 230 Effects 24 | . 7 . . 3 6 . . 6 . . . 2 Shutdowns 5 | . 2 . . . 2 . . . . . . 1 Energy Bleed 4 | . 1 . . . 1 . . 1 . . . 1 Interference 8 | . 1 . . 2 . . . 5 . . . . Matter Decay 1 | . . . . 1 . . . . . . . . Short Circuit 1 | . . . . . 1 . . . . . . . Damage (minor) 5 | . 3 . . . 2 . . . . . . . Siege Activations . | . . . . . . . . . . . . . Robots Corrupted . | . . . . . . . . . . . . . Combat Hostiles . | . . . . . . . . . . . . . Parts Fried 6 | . . . . . 6 . . . . . . . Impact Corruptions . | . . . . . . . . . . . . . Robots Melted 4 | . . . . . . 1 . . . . 1 2 Combat Hostiles 4 | . . . . . . 1 . . . . 1 2 Parts Melted 22 | . 1 2 . 1 7 2 . . . . 3 6 Heat Transferred 12559 | . 851 555 . 1406 3659 1813 150 550 100 200 800 2475 Parts Sabotaged . | . . . . . . . . . . . . . Parts Stolen . | . . . . . . . . . . . . . Parts Stripped . | . . . . . . . . . . . . . Power Chain Reactions 2 | . . . . . 1 1 . . . . . . Alert | -11 -10 -9 -9 -8 -7 -6 -6 -6 -6 -6 -6 -6 ------- Run | Yrd Mat Mat Min Mat Fac Fac Was Fac Ext Cet Arc Hub Peak Influence 587 | . 148 239 50 272 452 587 55 228 417 157 118 296 Initial 114 | . . 37 . . 16 16 50 29 17 114 13 28 Average 82 | . 94 49 2 51 87 321 46 69 201 88 93 122 Maximum Alert Level 2 | . . 1 . 1 2 2 . 1 2 . . 1 Low Security (%) 88 | 100 100 98 100 94 86 18 100 99 53 100 100 76 Level 1 7 | . . 1 . 5 10 41 . . 19 . . 23 Level 2 3 | . . . . . 3 40 . . 26 . . . Level 3 . | . . . . . . . . . . . . . Level 4 . | . . . . . . . . . . . . . Level 5 . | . . . . . . . . . . . . . High Security . | . . . . . . . . . . . . . Max Security . | . . . . . . . . . . . . . Squads Dispatched 57 | . . 6 . 9 24 8 . 2 2 1 . 5 Investigation 24 | . . 4 . 5 9 3 . 1 . 1 . 1 Extermination 11 | . . . . . 8 . . 1 . . . 2 Reinforcement 12 | . . 2 . 3 2 1 . . 2 . . 2 Assault 2 | . . . . . 1 1 . . . . . . Garrison 8 | . . . . 1 4 3 . . . . . . Intercept . | . . . . . . . . . . . . . Searches Triggered . | . . . . . . . . . . . . . Construction Impeded 5 | . . . . . 2 1 . . 2 . . . Haulers Reinforced 1 | . . . . . . . . . . . . 1 Active Scanning Responses . | . . . . . . . . . . . . . Cargo Convoy Interrupts 1 | . . . . . . 1 . . . . . . Stealth | -11 -10 -9 -9 -8 -7 -6 -6 -6 -6 -6 -6 -6 --------- Run | Yrd Mat Mat Min Mat Fac Fac Was Fac Ext Cet Arc Hub Distress Signals 13 | . 2 1 . 5 . 1 . . 1 . . 3 Communications Jammed . | . . . . . . . . . . . . . Distress Signals . | . . . . . . . . . . . . . Times Spotted 310 | . 13 43 2 47 78 38 6 11 23 11 12 26 Peak Tracking Total 9 | . 5 5 2 4 5 9 6 3 4 5 2 4 Tactical Retreats 12 | . 1 . . 3 4 3 . . 1 . . . Traps | -11 -10 -9 -9 -8 -7 -6 -6 -6 -6 -6 -6 -6 ------- Run | Yrd Mat Mat Min Mat Fac Fac Was Fac Ext Cet Arc Hub Traps Triggered 23 | . 1 4 1 2 10 1 . 2 . . . 2 Indirectly . | . . . . . . . . . . . . . Trap Hack Attempts . | . . . . . . . . . . . . . Triggered . | . . . . . . . . . . . . . Disarmed 4 | . . . . . . . . . . . . 4 Reprogrammed . | . . . . . . . . . . . . . Reused . | . . . . . . . . . . . . . Traps Extracted . | . . . . . . . . . . . . . Installed . | . . . . . . . . . . . . . Triggered . | . . . . . . . . . . . . . Machines | -11 -10 -9 -9 -8 -7 -6 -6 -6 -6 -6 -6 -6 ---------- Run | Yrd Mat Mat Min Mat Fac Fac Was Fac Ext Cet Arc Hub Machines Disabled 38 | . . 2 . . 14 5 . 1 9 2 2 3 Max in Single Turn 5 | . . 1 . . 5 2 . 1 2 1 1 1 Garrison Access 5 | . . . . . 2 1 . 2 . . . . Energy Cycler 2 | . . . . . . . . . 2 . . . Machines Repaired . | . . . . . . . . . . . . . Machines Dismantled . | . . . . . . . . . . . . . Machines Sabotaged . | . . . . . . . . . . . . . Overloaded Fab Kills . | . . . . . . . . . . . . . Hacking | -11 -10 -9 -9 -8 -7 -6 -6 -6 -6 -6 -6 -6 --------- Run | Yrd Mat Mat Min Mat Fac Fac Was Fac Ext Cet Arc Hub Machines Accessed 98 | . 7 16 2 10 30 6 . 9 9 3 1 5 Terminals 62 | . 6 10 . 7 14 3 . 5 9 3 . 5 Fabricators 4 | . . . . . 3 . . 1 . . . . Repair Stations 8 | . . 2 . 1 5 . . . . . . . Recycling Units 8 | . 1 2 . . 4 . . 1 . . . . Scanalyzers 8 | . . 2 . 2 3 1 . . . . . . Garrison Access 5 | . . . . . 1 2 . 2 . . . . Total Hacks 338 | . 21 54 2 41 99 20 . 25 20 13 25 18 Successful 253 | . 12 40 2 33 82 11 . 17 12 8 25 11 Failed 85 | . 9 14 . 8 17 9 . 8 8 5 . 7 Catastrophic 6 | . 1 . . 1 1 . . 2 . . . 1 Database Lockouts . | . . . . . . . . . . . . . Manual 126 | . 14 19 . 19 46 5 . 11 1 2 1 8 Terminals 204 | . 19 34 . 28 52 5 . 15 20 13 . 18 Fabricators 10 | . . . . . 7 . . 3 . . . . Repair Stations 25 | . . 6 . 3 16 . . . . . . . Recycling Units 19 | . 2 3 . . 10 . . 4 . . . . Scanalyzers 39 | . . 11 . 10 11 7 . . . . . . Garrison Access 14 | . . . . . 3 8 . 3 . . . . Terminal Hacks 105 | . 5 13 2 12 17 1 . 4 11 8 25 7 Record 34 | . . . . . . . . . 1 8 25 . Part Schematic 1 | . . . . . . . . . 1 . . . Prototype ID Bank 6 | . 1 2 . 1 2 . . . . . . . Open Door 8 | . . . 2 . . . . . 6 . . . Open DSF 3 | . . . . . 1 1 . 1 . . . . Level Access Points 5 | . 1 1 . 1 1 . . . 1 . . . Branch Access Points 5 | . 1 1 . 1 1 . . . 1 . . . Emergency Access Points 5 | . . 2 . 1 . . . 1 . . . 1 Machine Index 2 | . 1 1 . . . . . . . . . . Terminal Index 4 | . . 1 . 1 . . . 1 1 . . . Scanalyzer Index 1 | . . . . . 1 . . . . . . . Alert Level 4 | . . 2 . 1 . . . . . . . 1 Unreport Threat 8 | . . . . 1 6 . . 1 . . . . Locate Traps 2 | . . . . 1 . . . . . . . 1 Disarm Traps 2 | . . . . . . . . . . . . 2 Security Status 1 | . . . . . 1 . . . . . . . Surveillance Status 1 | . . 1 . . . . . . . . . . Extermination Status 1 | . . . . . 1 . . . . . . . Reinforcement Status 1 | . . . . . 1 . . . . . . . Recall Investigation 1 | . . . . 1 . . . . . . . . Recall Extermination 1 | . . . . . . . . . . . . 1 Registered Prototypes 1 | . 1 . . . . . . . . . . . Zone Layout 8 | . . 2 . 3 2 . . . . . . 1 Fabricator Hacks 10 | . . . . . 7 . . 3 . . . . Network Status 4 | . . . . . 3 . . 1 . . . . Load Schematic 3 | . . . . . 2 . . 1 . . . . Build 3 | . . . . . 2 . . 1 . . . . Repair Station Hacks 25 | . . 6 . 3 16 . . . . . . . Scan Component 13 | . . 3 . 2 8 . . . . . . . Repair 12 | . . 3 . 1 8 . . . . . . . Recycling Unit Hacks 10 | . 1 2 . . 4 . . 3 . . . . Report Inventory 3 | . . 1 . . 1 . . 1 . . . . Retrieve Matter 3 | . . . . . 3 . . . . . . . Retrieve Components 4 | . 1 1 . . . . . 2 . . . . Scanalyzer 37 | . . 9 . 10 11 7 . . . . . . Insert Component 19 | . . 5 . 5 6 3 . . . . . . Analyze 18 | . . 4 . 5 5 4 . . . . . . Garrison Access Hacks 2 | . . . . . . . . 2 . . . . Seal Access 2 | . . . . . . . . 2 . . . . Unauthorized Hacks 64 | . 6 10 . 8 27 3 . 5 1 . . 4 Terminals 59 | . 6 9 . 8 24 2 . 5 1 . . 4 Track 8 | . . . . 1 7 . . . . . . . Assimilate 6 | . . 1 . . 4 1 . . . . . . Botnet 42 | . 6 8 . 7 11 1 . 4 1 . . 4 Operators 3 | . . . . . 2 . . 1 . . . . Fabricators . | . . . . . . . . . . . . . Repair Stations . | . . . . . . . . . . . . . Recycling Units 2 | . . . . . 2 . . . . . . . Mask 2 | . . . . . 2 . . . . . . . Scanalyzers 1 | . . 1 . . . . . . . . . . Extract 1 | . . 1 . . . . . . . . . . Garrison Access 2 | . . . . . 1 1 . . . . . . Jam 2 | . . . . . 1 1 . . . . . . Data Cores Recovered 1 | . . . . . . 1 . . . . . . Used . | . . . . . . . . . . . . . Hacking Detections 78 | . 5 14 . 10 26 5 . 8 3 2 . 5 Full Trace Events 22 | . . 4 . 5 8 2 . 1 . 1 . 1 Feedback Events 1 | . . . . . . . . . . . . 1 Corruption 1 | . . . . . . . . . . . . 1 Feedback Blocked . | . . . . . . . . . . . . . Robot Schematics Acquired . | . . . . . . . . . . . . . Robots Built . | . . . . . . . . . . . . . Authchips . | . . . . . . . . . . . . . Time . | . . . . . . . . . . . . . Total Robot Build Rating . | . . . . . . . . . . . . . Part Schematics Acquired 18 | . . 6 . 4 5 2 . . 1 . . . Parts Built 6 | . . . . . 4 . . 2 . . . . Authchips . | . . . . . . . . . . . . . Time 210 | . . . . . 168 . . 42 . . . . Total Part Build Rating 24 | . . . . . 16 . . 8 . . . . Parts Repaired 12 | . . 3 . 1 8 . . . . . . . Time 275 | . . 90 . 44 141 . . . . . . . Parts Recycled . | . . . . . . . . . . . . . Recycled Matter . | . . . . . . . . . . . . . Retrieved Matter 196 | . . . . . 196 . . . . . . . Retrieved Components 26 | . 9 9 . . . . . 8 . . . . Parts Scanalyzed 16 | . . 4 . 4 5 3 . . . . . . Part Schematics Acquired 15 | . . 4 . 4 5 2 . . . . . . Parts Damaged 2 | . . . . . . 2 . . . . . . Bothacking | -11 -10 -9 -9 -8 -7 -6 -6 -6 -6 -6 -6 -6 ------------ Run | Yrd Mat Mat Min Mat Fac Fac Was Fac Ext Cet Arc Hub Used RIF Installer . | . . . . . . . . . . . . . Robots Hacked . | . . . . . . . . . . . . . Non-combat . | . . . . . . . . . . . . . Combat . | . . . . . . . . . . . . . Robot Hacks Applied . | . . . . . . . . . . . . . Relay Couplers Released 4 | . . . . . 4 . . . . . . . Programmers 4 | . . . . . 4 . . . . . . . Fabnet Peak Effective % . | . . . . . . . . . . . . . Robots Rewired . | . . . . . . . . . . . . . Allies Hacked . | . . . . . . . . . . . . . Hacks Repelled . | . . . . . . . . . . . . . Allies | -11 -10 -9 -9 -8 -7 -6 -6 -6 -6 -6 -6 -6 -------- Run | Yrd Mat Mat Min Mat Fac Fac Was Fac Ext Cet Arc Hub Total Allies 7 | . . . . . 4 . 1 . 2 . . . Largest Group 2 | . . . . . 2 . 1 . 2 . . . Highest-Rated Group 45 | . . . . . 20 . 31 . 45 . . . Highest-Rated Ally 31 | . . . . . 10 . 31 . 25 . . . Total Orders 5 | . . . . . 3 2 . . . . . . STAY 2 | . . . . . 2 . . . . . . . FOLLOW 1 | . . . . . 1 . . . . . . . EXPLORE 1 | . . . . . . 1 . . . . . . RETURN 1 | . . . . . . 1 . . . . . . Ally Attacks 71 | . . . . 24 . 30 11 . 6 . . . Total Damage 646 | . . . . 63 . 93 233 . 257 . . . Kills 1 | . . . . . . . . . 1 . . . Allies Corrupted 1 | . . . . . . 1 . . . . . . Allies Melted . | . . . . . . . . . . . . . Intel | -11 -10 -9 -9 -8 -7 -6 -6 -6 -6 -6 -6 -6 ------- Run | Yrd Mat Mat Min Mat Fac Fac Was Fac Ext Cet Arc Hub Robot Analysis Total . | . . . . . . . . . . . . . Derelict Logs Recovered 2 | . . . 2 . . . . . . . . . Drone Launches 15 | . . . . 6 . 9 . . . . . . Drone Recoveries 12 | . . . . 6 . 6 . . . . . . Exploration | -11 -10 -9 -9 -8 -7 -6 -6 -6 -6 -6 -6 -6 ------------- Run | Yrd Mat Mat Min Mat Fac Fac Was Fac Ext Cet Arc Hub Turns Passed 23093 | 118 652 4407 1712 3687 7496 885 194 981 989 749 397 826 Spaces Moved 11577 | 51 403 1650 689 1289 3957 562 163 826 1093 333 195 366 Core 36 | 32 . 2 . . . . . . . 2 . . Treads 4155 | . . 1097 689 1266 547 . . 17 . . 173 366 Legs 996 | 19 403 551 . 23 . . . . . . . . Wheels 4573 | . . . . . 3410 562 163 438 . . . . Hover 1817 | . . . . . . . . 371 1093 331 22 . Flight . | . . . . . . . . . . . . . Fastest Speed 48 | 50 120 120 240 232 120 115 100 48 56 106 106 160 Average Speed 161 | 199 132 239 240 246 143 117 106 87 71 109 158 160 Slowest Speed 900 | 250 190 900 240 330 238 145 145 240 106 650 240 160 Overloaded Moves . | . . . . . . . . . . . . . Propulsion Burnouts . | . . . . . . . . . . . . . Robots Hopped . | . . . . . . . . . . . . . Cave-ins Triggered . | . . . . . . . . . . . . . Exploration Rate (%) 64 | 5 56 98 101 84 73 16 75 20 93 77 94 40 Regions Visited 12 Branch Regions 5 Pre-discovered Areas 2 | . . . 2 . . . . . . . . . Known Exits Taken 10 | 1 1 1 1 1 1 . . 1 1 1 1 . Unknown Exits Taken . | . . . . . . . . . . . . . Scrap Searched 1 | . . . 1 . . . . . . . . . Spaces Dug 9 | . . . . . 4 3 . 2 . . . . Terrain Destroyed 699 | . . 3 . . 194 70 . 10 341 60 8 13 Melee 7 | . . . . . 4 3 . . . . . . Projectile 41 | . . . . . 1 1 . 10 4 4 8 13 AOE 651 | . . 3 . . 189 66 . . 337 56 . . Terrain Rammed . | . . . . . . . . . . . . . Walls Destroyed . | . . . . . . . . . . . . . Machines Disabled . | . . . . . . . . . . . . . Actions | -11 -10 -9 -9 -8 -7 -6 -6 -6 -6 -6 -6 -6 --------- Run | Yrd Mat Mat Min Mat Fac Fac Was Fac Ext Cet Arc Hub Total 14741 | 67 452 1926 725 1617 5490 673 176 1007 1220 670 241 477 Wait 2023 | . . 120 7 136 1248 23 1 84 68 303 1 32 Move 11566 | 50 402 1649 688 1288 3956 562 162 825 1092 332 194 366 Hop . | . . . . . . . . . . . . . Pick Up 178 | 13 5 29 5 29 45 3 3 22 6 4 12 2 Fast Attach 38 | 1 . 2 1 6 6 . . 7 5 . . 10 Attach 90 | 3 4 8 . 3 22 15 4 11 3 8 7 2 Detach 2 | . . . . . 2 . . . . . . . Swap 134 | . 3 19 5 29 48 10 4 9 3 1 2 1 Drop 125 | . 2 12 7 33 34 7 . 15 9 . . 6 Fire 566 | . 36 85 12 93 118 49 2 34 34 22 25 56 Melee 8 | . . . . . 4 4 . . . . . . Ram 1 | . . . . . 1 . . . . . . . Kick 1 | . . 1 . . . . . . . . . . Crush 3 | . . 1 . . . . . . . . . 2 Escape Stasis 6 | . . . . . 6 . . . . . . . Rewire . | . . . . . . . . . . . . . Trap . | . . . . . . . . . . . . . Miscellaneous . | . . . . . . . . . . . . . Route ------- -11/Scrapyard -10/Materials (discovered 5 exits: *Mat x3 / *Min x2) -9/Materials (discovered 4 exits: *Mat x3 / *Min) -9/Mines (discovered 2 exits: *Mat x2) -8/Materials (discovered 3 exits: *Fac x3) -7/Factory (discovered 7 exits: *Fac x4 / Sto / *Low x2) -6/Factory -6/Waste -6/Factory -6/Extension (discovered 3 exits: *Fac x2 / *Cet) -6/Cetus (discovered 3 exits: *Fac x2 / *Arc) -6/Archives (discovered 3 exits: *Fac / *Hub x2) -6/Hub_04(d) (discovered 2 exits: *Fac x2) History --------- Turn | Location | Event 5 | -11/Scrapyard | Identified exit to Materials 5 | -11/Scrapyard | Discovered exit to Materials (range 16) 119 | -11/Scrapyard | Entered Materials 119 | -10/Materials | Evolved 1 slot: Utility x1 228 | -10/Materials | Identified exit to Materials 239 | -10/Materials | Identified exit to Mines 239 | -10/Materials | Discovered exit to Mines (range 12) 313 | -10/Materials | Build established: Hacker-Mutant 771 | -10/Materials | Entered another Materials area 771 | -9/Materials | Evolved 2 slots: Utility x2 1548 | -9/Materials | Build established: Scavenger-Skirmisher 1774 | -9/Materials | Identified exit to Materials 1774 | -9/Materials | Discovered exit to Materials (range 15) 2036 | -9/Materials | Identified exit to Mines 2036 | -9/Materials | Discovered exit to Mines (range 8) 2682 | -9/Materials | Discovered exit to Materials (range 18) 3056 | -9/Materials | Repaired Terrain Scanner 3089 | -9/Materials | Repaired Hvy. Assault Rifle 3377 | -9/Materials | Repaired Hvy. Assault Rifle 3666 | -9/Materials | Build established: Hacker-Skirmisher 5178 | -9/Materials | Entered Mines 5204 | -9/Mines | Met a Derelict bent on vengeance 5426 | -9/Mines | Learned Materials stockpile data 5674 | -9/Mines | Found the Drone Emporium 5678 | -9/Mines | Learned location of Zion (-6) 5688 | -9/Mines | Found Prototype Device 5689 | -9/Mines | Identified Thief Drone Bay 5742 | -9/Mines | Discovered exit to Materials (range 5) 5974 | -9/Mines | Discovered exit to Materials (range 10) 6184 | -9/Mines | Met a Derelict who couldn't figure out how to use a Trap Extractor 6569 | -9/Mines | Learned location of Storage (-7) 6890 | -9/Mines | Entered Materials 6890 | -8/Materials | Evolved 2 slots: Utility x2 8684 | -8/Materials | Identified exit to Factory 8684 | -8/Materials | Discovered exit to Factory (range 17) 10549 | -8/Materials | Repaired Recalibrator 10556 | -8/Materials | Garrison activated, responded to threat 10577 | -8/Materials | Entered Factory 10577 | -7/Factory | Evolved 2 slots: Propulsion x1, Weapon x1 11831 | -7/Factory | Build established: Hacker-Gunner 12445 | -7/Factory | Build established: Hacker-Skirmisher 12502 | -7/Factory | Identified exit to Factory 12502 | -7/Factory | Discovered exit to Factory (range 17) 12519 | -7/Factory | Garrison activated, responded to threat 12683 | -7/Factory | Identified exit to Storage 12683 | -7/Factory | Identified exit to Lower Caves 13088 | -7/Factory | Fabricated Arm. Huge Wheel (x2) 13281 | -7/Factory | Repaired Hardlight Generator 13688 | -7/Factory | Build established: Hacker-Gunner 14375 | -7/Factory | Build established: Hacker-Skirmisher 15354 | -7/Factory | Repaired Imp. Deuterium Engine 15534 | -7/Factory | Repaired System Restoration Module 15659 | -7/Factory | Build established: Hacker-Gunner 15839 | -7/Factory | Repaired Arm. Wheel 15867 | -7/Factory | Repaired Terrain Scanner 16164 | -7/Factory | Build established: Hacker-Skirmisher 17173 | -7/Factory | Fabricated Arm. Huge Wheel (x2) 17536 | -7/Factory | Repaired Arm. Wheel 17552 | -7/Factory | Repaired Hvy. Missile Launcher 17825 | -7/Factory | Repaired Imp. Sensor Array 18073 | -7/Factory | Entered another Factory area 18073 | -6/Factory | Evolved 2 slots: Propulsion x1, Utility x1 18079 | -6/Factory | Identified exit to DSF 18235 | -6/Factory | Garrison activated, responded to threat 18268 | -6/Factory | Lost 3 parts (1u2w) 18423 | -6/Factory | First assault squad dispatched 18867 | -6/Factory | Cargo convoy interrupted 18907 | -6/Factory | Lost 5 parts (1p2u2w) 18958 | -6/Factory | Sucked down chute 18958 | -6/Factory | Entered Waste 18959 | -6/Waste | Met a frightened Derelict 18990 | -6/Waste | Spotted C-40 Crusher 19014 | -6/Waste | Spotted C-40 Crusher 19014 | -6/Waste | Spotted C-40 Crusher 19027 | -6/Waste | Spotted C-40 Crusher 19049 | -6/Waste | Crushed by Compactor (1 part destroyed, 2 dropped) 19077 | -6/Waste | Spotted C-40 Crusher 19087 | -6/Waste | Spotted C-40 Crusher 19124 | -6/Waste | Identified exit to Factory 19124 | -6/Waste | Discovered exit to Factory (range 17) 19152 | -6/Waste | Entered Factory 19466 | -6/Factory | Lost 3 parts (1n1u1w) 19876 | -6/Factory | Fabricated System Restoration Module (x2) 20116 | -6/Factory | Build established: Hacker-Scout 20124 | -6/Factory | Identified exit to Extension 20124 | -6/Factory | Discovered exit to Extension (range 18) 20133 | -6/Factory | Entered Extension 20179 | -6/Extension | Spotted B-75 Beast 20243 | -6/Extension | Rescued a captive Derelict 20244 | -6/Extension | Rescued a captive Derelict 20311 | -6/Extension | Identified exit to Cetus 20311 | -6/Extension | Identified exit to Factory 20320 | -6/Extension | Energy Cycler disabled 20320 | -6/Extension | Rescued a captive Derelict 20320 | -6/Extension | Rescued a captive Derelict 20320 | -6/Extension | Rescued a captive Derelict 20320 | -6/Extension | Rescued a captive Derelict 20322 | -6/Extension | Rescued a captive Derelict 20422 | -6/Extension | Spotted B-75 Beast 20423 | -6/Extension | Extracted ID and sensor layout for unrecognized location from A7's data core 20485 | -6/Extension | Destroyed B-75 Beast 20992 | -6/Extension | Build established: Hacker-Skirmisher 21040 | -6/Extension | Disrupted transfer network 21082 | -6/Extension | Core integrity fell below 50% 21122 | -6/Extension | Entered Cetus 21150 | -6/Cetus | Spotted Cetus Guard 21150 | -6/Cetus | Spotted Cetus Guard 21150 | -6/Cetus | Spotted Cetus Guard 21150 | -6/Cetus | Spotted Cetus Guard 21170 | -6/Cetus | Destroyed Cetus Guard 21179 | -6/Cetus | Destroyed Cetus Guard 21183 | -6/Cetus | Destroyed Cetus Guard 21190 | -6/Cetus | Destroyed Cetus Guard 21209 | -6/Cetus | Lost 7 parts (1p1n1u4w) 21230 | -6/Cetus | Discovered exit to Factory (range 21) 21591 | -6/Cetus | Identified exit to Archives 21591 | -6/Cetus | Discovered exit to Archives (range 22) 21842 | -6/Cetus | Spotted Cetus Guard 21842 | -6/Cetus | Spotted Cetus Guard 21842 | -6/Cetus | Spotted Cetus Guard 21842 | -6/Cetus | Spotted Cetus Guard 21844 | -6/Cetus | Discovered exit to Factory (range 21) 21871 | -6/Cetus | Entered Archives 21916 | -6/Archives | Core integrity fell below 20% 21949 | -6/Archives | Lost 4 parts (1p1n2w) 22010 | -6/Archives | Discovered exit to Factory (range 17) 22019 | -6/Archives | Identified exit to Hub_04(d) 22019 | -6/Archives | Discovered exit to Hub_04(d) (range 15) 22055 | -6/Archives | Discovered exit to Hub_04(d) (range 22) 22063 | -6/Archives | Unable to access archive contents 22088 | -6/Archives | Unable to access archive contents 22104 | -6/Archives | Unable to access archive contents 22120 | -6/Archives | Unable to access archive contents 22268 | -6/Archives | Entered Hub_04(d) 22317 | -6/Hub_04(d) | Build established: Scavenger-Gunner 22723 | -6/Hub_04(d) | Discovered exit to Factory (range 18) 22723 | -6/Hub_04(d) | Discovered exit to Factory (range 16) 23020 | -6/Hub_04(d) | Build established: Scavenger-Skirmisher 23094 | -6/Hub_04(d) | Destroyed by G-50 Soldier with Heavy Laser Last Messages --------------- Awaiting botnet instructions. Feedback: System corruption (+1%). ALERT: Suspicious activity at Terminal H009. Dispatching Investigation squad. K-01 Serf collects debris. Slug penetrates G-50 Soldier. K-01 Serf collects debris. G-50 Soldier suffers critical hit (Meltdown). Slug penetrates Wall. Slug penetrates Earth. Critical hit (Burn: +19). Slug penetrates G-50 Soldier. G-50 Soldier suffers critical hit (Destroy). Destroyed Lgt. Angular Momentum Engine. Control Node disabled. Slug penetrates G-50 Soldier. G-50 Soldier destroyed. Power failure, Neutrino Core shutdown. K-01 Serf cleans the Control Node. Slug penetrates G-50 Soldier. Map ----- +----------------------------------------------------+ | ?????????????????????????????????????? #????????? | | ????????????????????????????##???????? +????????? | | ???????????????????????????? ???????? #????????? | | ???????????????????????????? ???????? ?????????? | | ????????????????????????????# ???????? ?????????? | | ????????????????????????????# ???????? ?????????? | | ????????????????????????????# ???????+ ?????????? | | ????????????????????????????# #??????# ?????????? | | ????????????????????????????# #??????# ?????????? | | ????????????????????????????# #??????# #?????????? | | ????????????????????????????# #??????# #?????????? | | ????????????????????????????# #??????# #?????????? | | ????????????????????????????# #??????# #??####???? | | ??# # #??#######???# #####??# #?[ ####? | | ??# """" + < #??# ##### #### ## """#? | | ??# """" # #??# ## "#? | | ??# """" ## ##??# < T ## "#? | | ??# """" ## ##### ## "#? | | ??# + k ##### ## ## """#? | | ??##+########+################ ### u#?????###?? | | ???# #???# # # # # #?????????? | | ???# #???# ss """ "" """ + u; # ########### | | ???# #???# # # R ### ## # | | ???# #???# # /== %"""k; ##k # """" [ # | | ???# #???# # /== =%g;!% ^R T" # """" # | | ???# ##### # == @ # !% " + """" # | | ???# + ############### =k| # """" = # | | ####+## ####+#################+### # # | | # #T## # Rt ###+#####+#####? | | """ + # """ """ """ """ / # [ #????? | | # # u # """ #????? | | """ # ]!! # """ """R""" """ ! # "T """ #????? | | # ]!! # ! =R # """ #????? | | ####### !] # | = ! # !! #????? | | ###???#[! !% #####/#########+##### !! ##???? | | #???#!%|!%=!%!=%*%!A! ##### *=! #???? | | " #?#?#=#####+########o##### + !%[ ##???? | | " #####*# #?????#%##### ###############????? | | " +% [!%# """" #####?#=[ # #??????????????????? | | #####!# """" # ### # #??############????? | | #???#=# """" + # #??# #????? | | ! #???#!# """" # ### # #??# #????? | | ###???# # #####?# # #??# " #????? | | ???#### ############### ## #??# """ ??????? | | #??# ?????????????# ## #### """"" ?????? | | #??# ####?????????????# ## %! + """"""" #????? | | #??# #????????????????# ## !%= + """"" #????? | | #??# #????????????????+ ####+[## """ #????? | | #?## ##???????????????# ## =## " #????? | | ### #######?????????# ## " ## #????? | +----------------------------------------------------+ Best States ------------- Heat Dissipation 37 Energy Generation 19 Energy Capacity 715 Matter Stores 483 Matter Capacity 550 Sight Range 22 Robot Scan Range 16 Terrain Scan Range 20 Terrain Scan Density 210 Corruption Containment 8 Corruption Block 8 Armor Coverage 225 Resistance: KI 55 Resistance: TH 35 Resistance: EX 35 Resistance: EM 35 Resistance: I 35 Resistance: S 35 Resistance: P 35 Evasion (%) 55 Targeting Accuracy 6 Armor Integrity Analysis 30 Recoil Reduction 4 Particle Charging 15 Offensive Hacking 32 Defensive Hacking 12 Item Schematics ----------------- Rocket Launcher | -9/Materials | Scanalyzed Visual Processing Unit | -9/Materials | Scanalyzed Imp. Ion Engine | -9/Materials | Scanalyzed Shield Generator | -9/Materials | Scanalyzed Hcp. Battery | -9/Materials | Extracted Flight Unit | -9/Materials | Extracted Recalibrator | -8/Materials | Scanalyzed System Restoration Module | -8/Materials | Scanalyzed Carbon-fiber Leg | -8/Materials | Scanalyzed Imp. Deuterium Engine | -8/Materials | Scanalyzed Hardlight Generator | -7/Factory | Scanalyzed Arm. Huge Wheel | -7/Factory | Scanalyzed Cryofiber Web | -7/Factory | Scanalyzed Arm. Treads | -7/Factory | Scanalyzed Hvy. Rocket Launcher | -7/Factory | Scanalyzed Corruption Screen | -6/Factory | Scanalyzed Kinecellerator | -6/Factory | Scanalyzed Imp. Gyrokinetic Inverter | -6/Extension | Hacked Robot Schematics ------------------ None Fabricated ------------ Arm. Huge Wheel | x2 | -7/Factory Arm. Huge Wheel | x2 | -7/Factory System Restoration Module | x2 | -6/Factory Alien Tech Used ----------------- None Achievements -------------- None Challenges ------------ None Game ------ Seed GatlingOmegaStabilizer Manual? 0 Play Time 04:08:03 Cumulative 40.0 hours Start 2024.04.28 @ 00:16:21 End 2024.04.29 @ 00:39:47 Sessions 5 Manual Loads 0 Difficulty Explorer Special Mode None Game No. 8 Rogue 0 Adventurer 0 Explorer 8 Win Type - Total 0 Types 0/0/0/0/0/0/0/0/0 Lore% 20 Gallery% 30 Achievement% 24 Wizard Run 0 Options --------- Layout 1 ASCII 0 Keyboard 0 Movement Mouse Keybinds 0 Fullscreen 2 Font 32/SmallcapsGlow Map View 50x35 Zoom Use 0% Tactical HUD 0 Map Filters NONE Filters NONE Steam 1 RUN: 6884e37d-d2d7-4123-b5de-d66e291eb156